Cogmind - Beta 16 @@@ ROGUE MODE // 2025.11.29 @ 23:57:20 Player: H3-MLN Result: Destroyed by Y-54 Guardian with Gatling Laser Performance ------------- Evolutions (1) 500 Regions Visited (6) 1200 Robots Destroyed (36) 180 Value Destroyed (634) 634 Prototype IDs (6) 120 Alien Tech Used (0) 0 Bonus (801) 801 TOTAL SCORE: 3435 Bonus ------- Follower Combat Kills 201 Met Imprinter 300 Was Imprinted 300 Cogmind --------- Core Integrity 0/400 Matter 296/300 Energy 169/170 System Corruption 0% Temperature Cool (8) Movement Flying (44) Location -6/Proximity Caves Parts ------- > --- POWER (1) -------- Makeshift Power Source > --- PROPULSION (2) --- Improved Flight Unit Makeshift Flight Unit > --- UTILITY (4) ------ Structural Scanner Visual Processing Unit > --- WEAPON (2) ------- Makeshift Sword CR-A16's Pointy Stick > --- INVENTORY (5) ---- Improved Trap Extractor (6/6 Fire) Hacking Drone Bay (1/1) Dimensional Node Initializer Heavy Rocket Launcher GAL Module Peak State ------------ > --- POWER ------------ Makeshift Power Source > --- PROPULSION ------- Improved Flight Unit Makeshift Flight Unit > --- UTILITY ---------- Structural Scanner Visual Processing Unit Hacking Suite Hacking Drone Bay > --- WEAPON ----------- Makeshift Hammer Makeshift Sword > --- INVENTORY -------- Backup Power I Flight Unit Disposable Heat Sink Rocket Launcher CR-A16's Pointy Stick [Rating: 35] Favorites ----------- Power Light Ion Engine Engine Light Ion Engine Propulsion Flight Unit Flight Unit Flight Unit Utility Structural Scanner Device Structural Scanner Processor Visual Processing Unit Hackware Hacking Suite Protection Light Armor Plating Weapon Assault Rifle Energy Gun Medium Laser Ballistic Gun Assault Rifle Launcher Heavy Rocket Launcher Impact Weapon Mace Slashing Weapon Makeshift Sword Piercing Weapon CR-A16's Pointy Stick Build | -11 -10 -10 -9 -9 -7 -6 ------- Run | Yrd Mat Min Mat Min Zio Pro Slots Evolved 2 | . . . 2 . . . Power . | . . . . . . . Propulsion . | . . . . . . . Utility 2 | . . . 2 . . . Weapon . | . . . . . . . Parts Attached 38 | 3 9 1 13 2 6 4 Power 5 | 1 2 . 1 . 1 . Engine 5 | 1 2 . 1 . 1 . Core . | . . . . . . . Reactor . | . . . . . . . Propulsion 9 | . 2 1 4 1 1 . Treads . | . . . . . . . Leg . | . . . . . . . Wheel . | . . . . . . . Hover . | . . . . . . . Flight 9 | . 2 1 4 1 1 . Utility 11 | . 3 . 4 1 2 1 Device 7 | . 3 . 2 . 1 1 Storage . | . . . . . . . Processor 1 | . . . 1 . . . Hackware 1 | . . . 1 . . . Protection 2 | . . . . 1 1 . Artifact . | . . . . . . . Weapon 13 | 2 2 . 4 . 2 3 Energy Gun 1 | 1 . . . . . . Energy Cannon . | . . . . . . . Ballistic Gun 5 | 1 2 . 2 . . . Ballistic Cannon . | . . . . . . . Launcher 2 | . . . 1 . . 1 Special Weapon . | . . . . . . . Impact Weapon 2 | . . . 1 . 1 . Slashing Weapon 2 | . . . . . 1 1 Piercing Weapon 1 | . . . . . . 1 Special Melee Weapon . | . . . . . . . Unidentified Prototypes 2 | . . . 1 . 1 . Corrupted Parts 1 | . . . 1 . . . System Corruption 3 | . . . 3 . . . Parts Lost 12 | . 2 1 7 . . 2 Power 3 | . 1 . 2 . . . Propulsion 5 | . . 1 4 . . . Utility 3 | . . . 1 . . 2 Weapon 1 | . 1 . . . . . Highest Loss Streak 2 | . 2 1 2 . . 1 To Critical Strikes . | . . . . . . . Average Backups 3 | . 2 4 4 4 4 4 Power . | . . 1 . . . . Propulsion . | . . . . 1 1 . Utility 1 | . . 1 1 2 1 1 Weapon 1 | . 1 2 1 1 1 1 Tool/Special . | . . . . . . . Unused Backups 8 | . 1 1 1 . 3 2 Power . | . . . . . . . Propulsion 2 | . . . . . 1 1 Utility 2 | . 1 . . . 1 . Weapon 3 | . . 1 1 . 1 . Tool/Special 1 | . . . . . . 1 Average Slot Usage (%) 90 | . 75 99 88 84 97 96 Engine 11 | . 13 14 10 11 11 11 Flight 19 | . 11 27 19 18 22 22 Device 18 | . 21 28 25 14 11 11 Processor 6 | . . . 4 11 11 11 Hackware 7 | . . . 11 11 11 7 Protection 4 | . . . . 7 11 10 Energy Gun 2 | . 10 . . . . . Ballistic Gun 8 | . 16 28 8 . . . Impact Weapon 6 | . . . 7 11 11 4 Slashing Weapon 3 | . . . . . 8 11 Peak Build Rating 35 | 3 7 7 19 16 35 32 Average Rating 15 | 2 5 6 13 14 24 28 On Entrance 10 | . 3 7 7 14 14 28 Avg Prop Armor Cover (%) . | . . . . . . . Naked Turns . | . . . . . . . Heaviest Build 13 | 7 9 8 8 7 13 13 Greatest Support 13 | 3 8 8 9 9 13 13 Greatest Overweight (x) 2 | 2 2 . 1 . . . Average Overweight (x) . | 1 . . . . . . Largest Inventory Capacity 5 | 5 5 5 5 5 5 5 Average Capacity 5 | 5 5 5 5 5 5 5 Most Carried 5 | 1 5 5 5 5 5 5 Average Carried 4 | . 2 4 4 4 4 4 Final Capacity 5 | 5 5 5 5 5 5 5 Final Carried 5 | 1 5 4 4 5 5 5 Class Distribution -------------------- 43% | Mutant 36% | Scavenger-Mutant 19% | Derelict-Mutant Dominant Class ---------------- Mutant | -10/Materials Scavenger-Mutant | -10/Mines Mutant | -9/Materials Scavenger-Mutant | -9/Mines Derelict-Mutant | -7/Zion Mutant | -6/Proximity Caves Resources | -11 -10 -10 -9 -9 -7 -6 ----------- Run | Yrd Mat Min Mat Min Zio Pro Matter Collected 906 | 223 202 68 164 41 50 158 Remotely . | . . . . . . . Salvage Created 859 | . 337 28 343 45 25 81 Parts 57 | . 28 . 16 7 . 6 Haulers Intercepted 2 | . . . 2 . . . Recyclers Shooed 1 | . 1 . . . . . Parts Field Recycled . | . . . . . . . Retrieved Matter . | . . . . . . . Parts Self-Destructed 2 | . . . . . . 2 Prevented 9 | . . . . . . 9 Parts Restored . | . . . . . . . Kills | -11 -10 -10 -9 -9 -7 -6 ------- Run | Yrd Mat Min Mat Min Zio Pro Combat Hostiles Destroyed 23 | . 7 1 9 4 . 2 Melee 1 | . . . 1 . . . Guns 11 | . 7 1 3 . . . AOE 8 | . . . 2 4 . 2 Classes Destroyed 10 | . 7 . 2 . . 1 Worker 2 | . 1 . 1 . . . Builder 2 | . 1 . . 1 . . Hauler 2 | . . . 2 . . . Recycler 1 | . 1 . . . . . Minesweeper 2 | . . . . . . 2 Operator 2 | . 2 . . . . . Watcher 2 | . 1 . 1 . . . Swarmer 16 | . 5 . 5 4 . 2 Grunt 5 | . 2 1 2 . . . Sentry 2 | . . . 2 . . . Best Kill Streak 4 | . 3 1 4 4 . 2 Combat Bots Only 4 | . 3 1 4 4 . 2 Max Kills in Single Turn 4 | . 2 1 2 4 . 1 Gunslinging 1 | . 1 . . . . . Exploded 4 | . . . 2 4 . 1 Melee 1 | . . . 1 . . . Uniques/NPCs Destroyed . | . . . . . . . Combat | -11 -10 -10 -9 -9 -7 -6 -------- Run | Yrd Mat Min Mat Min Zio Pro Hostile Shots Fired 163 | . 49 6 71 4 . 33 Missed 50 | . 13 2 19 2 . 14 Hits 113 | . 36 4 52 2 . 19 Projectile 113 | . 36 4 52 2 . 19 Critical Strikes 4 | . 2 . 1 . . 1 Damage Taken 1383 | . 364 47 657 15 . 300 Core 478 | . 57 12 277 . . 132 Absorbed by Shields . | . . . . . . . Regen/Repaired (Parts) 14 | . . . 14 . . . Core Remaining (%) 86 | 100 . 72 . . . . Volleys Fired 51 | . 39 5 3 1 . 3 Largest 2 | . 2 2 2 1 . 1 Hottest 70 | . 70 40 40 33 . 39 Shots Fired 97 | . 78 10 5 1 . 3 Gun 92 | . 78 10 4 . . . Cannon . | . . . . . . . Launcher 5 | . . . 1 1 . 3 Special . | . . . . . . . Kinetic 67 | . 53 10 4 . . . Thermal 25 | . 25 . . . . . Explosive 5 | . . . 1 1 . 3 Electromagnetic . | . . . . . . . Robot Hit Streak 9 | . 8 9 2 3 . 4 Robot Miss Streak 6 | . 6 . 1 . . . Penetration Max . | . . . . . . . Secondary Targets 2 | . 2 . . . . . Max Gunslinging Chain 1 | . 1 . . . . . Shots Hit Robots 90 | . 42 9 29 2 1 7 Core Hits 36 | . 20 2 7 4 . 3 Critical Kills . | . . . . . . . Critical Parts Destroyed 8 | . . . 7 1 . . Critical Strikes 9 | . 1 . 7 1 . . Burn 1 | . 1 . . . . . Smash 8 | . . . 7 1 . . Melee Attacks 74 | . . . 48 10 2 14 Impact 64 | . . . 48 10 2 4 Slashing 10 | . . . . . . 10 Piercing . | . . . . . . . Sneak Attacks 7 | . . . 4 1 . 2 Combat Hostiles . | . . . . . . . Follow-up Attacks 1 | . . . . . . 1 Damage Inflicted 2701 | . 531 103 1074 240 74 679 Guns 670 | . 531 103 36 . . . Cannons . | . . . . . . . Explosions 666 | . . . 120 170 . 376 Melee 1365 | . . . 918 70 74 303 Ramming . | . . . . . . . Kinetic 532 | . 393 103 36 . . . Thermal 138 | . 138 . . . . . Explosive 666 | . . . 120 170 . 376 Electromagnetic . | . . . . . . . Impact 1096 | . . . 918 70 74 34 Slashing 269 | . . . . . . 269 Piercing . | . . . . . . . Highest Corruption 3 | . . . 3 3 3 . Average Corruption 3 | . . . 3 3 3 . Corruption Purged . | . . . . . . . Corruption Blocked . | . . . . . . . Effects 11 | . . . 5 5 1 . Message Errors 6 | . . . 4 1 1 . Heat Flow Errors 3 | . . . 1 2 . . Data Loss (minor) 2 | . . . . 2 . . Overload Shots . | . . . . . . . Overflow Damage 667 | . . . 425 70 68 104 Projectiles . | . . . . . . . Explosions 32 | . . . 20 . . 12 Melee 635 | . . . 405 70 68 92 Knockbacks 3 | . . . 2 1 . . Impact 2 | . . . 1 1 . . Kinetic . | . . . . . . . Secondary 1 | . . . 1 . . . Self-Inflicted Damage . | . . . . . . . Shots . | . . . . . . . Rammed . | . . . . . . . Targets Rammed . | . . . . . . . Kicked . | . . . . . . . Crushed . | . . . . . . . Highest Temperature 187 | . 5 . 187 165 . 96 Average Temperature 63 | . 5 . 91 76 . 43 Received Heat Transfer 510 | . 162 27 252 . . 69 Siege Activations . | . . . . . . . Martial Activations . | . . . . . . . Shielding Activations . | . . . . . . . Robots Disrupted . | . . . . . . . Combat Hostiles . | . . . . . . . Robots Corrupted 5 | . . . 4 1 . . Combat Hostiles 3 | . . . 3 . . . Parts Fried 9 | . . . 7 2 . . Impact Corruptions 21 | . . . 14 3 4 . Robots Melted . | . . . . . . . Combat Hostiles . | . . . . . . . Parts Melted . | . . . . . . . Heat Transferred 481 | . 481 . . . . . Parts Sabotaged . | . . . . . . . Parts Stolen . | . . . . . . . Parts Stripped . | . . . . . . . Power Chain Reactions . | . . . . . . . Alert | -11 -10 -10 -9 -9 -7 -6 ------- Run | Yrd Mat Min Mat Min Zio Pro Maximum Alert Level 1 | . 1 . . . . . Low Security (%) 96 | 100 86 100 100 100 . . Level 1 3 | . 13 . . . . . Level 2 . | . . . . . . . Level 3 . | . . . . . . . Level 4 . | . . . . . . . Level 5 . | . . . . . . . High Security . | . . . . . . . Max Security . | . . . . . . . Peak Influence 233 | . 233 136 167 150 . . Initial 86 | . . 86 6 61 . . Average 79 | . 69 83 97 76 . . Influence Increases 1589 | . 421 140 563 134 5 326 Destroy 0b10 Robot/C 580 | . 140 40 200 80 . 120 Destroy 0b10 Robot/NC 70 | . 30 . 20 5 5 10 Destroy Leader 108 | . 22 10 46 10 . 20 Allied During Kill 65 | . . 5 19 . . 41 Trap Triggered on 0b10 10 | . . 10 . . . . Successful Hack 42 | . 18 . 24 . . . Select Force Hacks 90 | . 60 . 30 . . . Disable Machine 75 | . . . 45 30 . . Destroy Structure 24 | . 1 . 14 9 . . Partial Spotted 45 | . . . 45 . . . Lose Combat Pursuer 480 | . 150 75 120 . . 135 Influence Decreases 1521 | . 199 344 422 258 40 258 Entered New Map 281 | . . 136 12 98 35 . Time Decay 970 | . 179 198 270 160 5 158 Lost Part 120 | . 20 10 70 . . 20 Lost Ally 150 | . . . 70 . . 80 Squads Dispatched 7 | . 4 . 2 . . 1 Investigation 5 | . 2 . 2 . . 1 Extermination . | . . . . . . . Reinforcement 2 | . 2 . . . . . Assault . | . . . . . . . Garrison . | . . . . . . . Intercept . | . . . . . . . Searches Triggered . | . . . . . . . Construction Impeded . | . . . . . . . Haulers Reinforced . | . . . . . . . Active Scanning Responses . | . . . . . . . Cargo Convoy Interrupts . | . . . . . . . Stealth | -11 -10 -10 -9 -9 -7 -6 --------- Run | Yrd Mat Min Mat Min Zio Pro Distress Signals 6 | . 4 . 2 . . . Communications Jammed . | . . . . . . . Distress Signals . | . . . . . . . Times Spotted 79 | . 26 6 25 6 . 16 Peak Tracking Total 9 | . 7 2 9 4 . 7 Tactical Retreats 17 | . 4 3 6 . . 4 Traps | -11 -10 -10 -9 -9 -7 -6 ------- Run | Yrd Mat Min Mat Min Zio Pro Traps Triggered 1 | . . . 1 . . . Indirectly . | . . . . . . . Trap Hack Attempts . | . . . . . . . Triggered . | . . . . . . . Disarmed . | . . . . . . . Reprogrammed . | . . . . . . . Reused 1 | . . 1 . . . . Traps Extracted . | . . . . . . . Installed 4 | . . 4 . . . . Triggered 1 | . . 1 . . . . Most Traps Carried 6 | . . . . . . 6 Objects Rigged 1 | . . . 1 . . . Machines | -11 -10 -10 -9 -9 -7 -6 ---------- Run | Yrd Mat Min Mat Min Zio Pro Machines Disabled 6 | . . . 3 2 . 1 Max in Single Turn 2 | . . . 1 2 . 1 Machines Repaired . | . . . . . . . Machines Dismantled . | . . . . . . . Machines Sabotaged . | . . . . . . . Overloaded Fab Kills . | . . . . . . . Hacking | -11 -10 -10 -9 -9 -7 -6 --------- Run | Yrd Mat Min Mat Min Zio Pro Machines Accessed 19 | . 8 . 10 . . 1 Terminals 13 | . 5 . 7 . . 1 Fabricators . | . . . . . . . Repair Stations 2 | . 1 . 1 . . . Recycling Units 2 | . 2 . . . . . Scanalyzers 2 | . . . 2 . . . Garrison Access . | . . . . . . . Total Hacks 66 | . 20 . 43 . . 3 Successful 45 | . 10 . 32 . . 3 Failed 20 | . 10 . 10 . . . Catastrophic 2 | . 1 . 1 . . . Database Lockouts 1 | . . . 1 . . . Manual 37 | . 9 . 28 . . . Terminals 51 | . 14 . 34 . . 3 Fabricators . | . . . . . . . Repair Stations 4 | . 1 . 3 . . . Recycling Units 5 | . 5 . . . . . Scanalyzers 6 | . . . 6 . . . Garrison Access . | . . . . . . . Terminal Hacks 15 | . 5 . 7 . . 3 Record 3 | . . . . . . 3 Part Schematic 1 | . . . 1 . . . Robot Schematic 1 | . 1 . . . . . Robot Analysis 2 | . 2 . . . . . Prototype ID Bank 2 | . 1 . 1 . . . Scanalyzer Index 1 | . . . 1 . . . Alert Level 1 | . . . 1 . . . Locate Traps 1 | . 1 . . . . . Hauler Manifests 1 | . . . 1 . . . Registered Components 1 | . . . 1 . . . Zone Layout 1 | . . . 1 . . . Fabricator Hacks . | . . . . . . . Repair Station Hacks 4 | . 1 . 3 . . . Scan Component 1 | . . . 1 . . . Repair 1 | . . . 1 . . . Refit 2 | . 1 . 1 . . . Recycling Unit Hacks 2 | . 2 . . . . . Report Inventory 1 | . 1 . . . . . Retrieve Components 1 | . 1 . . . . . Scanalyzer 5 | . . . 5 . . . Insert Component 2 | . . . 2 . . . Analyze 3 | . . . 3 . . . Garrison Access Hacks . | . . . . . . . Unauthorized Hacks 19 | . 2 . 17 . . . Terminals 16 | . . . 16 . . . Track 2 | . . . 2 . . . Assimilate 2 | . . . 2 . . . Botnet 2 | . . . 2 . . . Detonate 1 | . . . 1 . . . Disrupt 1 | . . . 1 . . . Operators 1 | . . . 1 . . . Skim 7 | . . . 7 . . . Fabricators . | . . . . . . . Repair Stations . | . . . . . . . Recycling Units 2 | . 2 . . . . . Tunnel 2 | . 2 . . . . . Scanalyzers 1 | . . . 1 . . . Extract 1 | . . . 1 . . . Garrison Access . | . . . . . . . Data Cores Recovered . | . . . . . . . Used . | . . . . . . . Hacking Detections 16 | . 6 . 9 . . 1 Full Trace Events 3 | . . . 2 . . 1 Feedback Events . | . . . . . . . Feedback Blocked . | . . . . . . . Robot Schematics Acquired 5 | . 1 . . . 4 . Robots Built . | . . . . . . . Authchips . | . . . . . . . Time . | . . . . . . . Total Robot Build Rating . | . . . . . . . Part Schematics Acquired 27 | . . . 12 . 15 . Parts Built . | . . . . . . . Authchips . | . . . . . . . Time . | . . . . . . . Total Part Build Rating . | . . . . . . . Part Studies Acquired . | . . . . . . . Parts Repaired 1 | . . . 1 . . . Time 26 | . . . 26 . . . Parts Recycled . | . . . . . . . Recycled Matter . | . . . . . . . Retrieved Matter . | . . . . . . . Retrieved Components 2 | . 2 . . . . . Parts Scanalyzed 2 | . . . 2 . . . Part Schematics Acquired 2 | . . . 2 . . . Parts Damaged . | . . . . . . . Bothacking | -11 -10 -10 -9 -9 -7 -6 ------------ Run | Yrd Mat Min Mat Min Zio Pro Used RIF Installer . | . . . . . . . Robots Hacked . | . . . . . . . Non-combat . | . . . . . . . Combat . | . . . . . . . Robot Hacks Applied . | . . . . . . . Relay Couplers Released . | . . . . . . . Fabnet Peak Effective % . | . . . . . . . Robots Rewired . | . . . . . . . Allies Hacked . | . . . . . . . Hacks Repelled . | . . . . . . . Allies | -11 -10 -10 -9 -9 -7 -6 -------- Run | Yrd Mat Min Mat Min Zio Pro Total Allies 9 | . . 3 1 1 4 . Largest Group 4 | . . 3 4 1 4 4 Highest-Rated Group 156 | . . 40 42 31 156 156 Highest-Rated Ally 40 | . . 16 16 31 40 40 Total Orders . | . . . . . . . Ally Attacks 25 | . . 12 6 . . 7 Total Damage 397 | . . 145 30 . . 222 Kills 6 | . . 1 1 . . 4 Allies Corrupted . | . . . . . . . Allies Melted . | . . . . . . . Intel | -11 -10 -10 -9 -9 -7 -6 ------- Run | Yrd Mat Min Mat Min Zio Pro Active Infowar (turns) 2711 | . 342 400 588 331 718 332 Optics 1646 | . . . 265 331 718 332 Terrain 245 | . 245 . . . . . Structural 2466 | . 97 400 588 331 718 332 Robot Analysis Total 2 | . 2 . . . . . Derelict Logs Recovered 5 | . . 3 . 1 1 . Drone Launches . | . . . . . . . Drone Recoveries . | . . . . . . . Exploration | -11 -10 -10 -9 -9 -7 -6 ------------- Run | Yrd Mat Min Mat Min Zio Pro Turns Passed 2986 | 55 562 400 588 331 718 332 Spaces Moved 4473 | 42 463 620 918 663 1168 599 Core 186 | 42 144 . . . . . Treads . | . . . . . . . Legs . | . . . . . . . Wheels . | . . . . . . . Hover . | . . . . . . . Flight 4287 | . 319 620 918 663 1168 599 Fastest Speed 34 | 50 37 37 34 37 37 44 Average Speed 44 | 120 76 37 37 38 42 44 Slowest Speed 200 | 150 200 37 110 40 44 44 Overloaded Moves . | . . . . . . . Propulsion Burnouts . | . . . . . . . Robots Hopped 26 | . 3 2 15 6 . . Potential Cave-ins . | . . . . . . . Cave-ins Triggered . | . . . . . . . Exploration Rate (%) 70 | 3 86 98 59 96 89 65 Regions Visited 6 Branch Regions 4 Pre-discovered Areas 10 | . 2 1 4 . 3 . Known Exits Taken . | . . . . . . . Unknown Exits Taken 6 | 1 1 1 1 1 1 . Scrap Searched 5 | . . 1 . 1 1 2 Spaces Dug 30 | . . . 13 . . 17 Terrain Destroyed 42 | . . . 13 9 . 20 Melee 4 | . . . 3 . . 1 Projectile . | . . . . . . . AOE 38 | . . . 10 9 . 19 Terrain Rammed . | . . . . . . . Walls Destroyed . | . . . . . . . Machines Disabled . | . . . . . . . Actions | -11 -10 -10 -9 -9 -7 -6 --------- Run | Yrd Mat Min Mat Min Zio Pro Total 5232 | 45 589 779 1057 718 1392 652 Wait 543 | . 68 150 66 42 198 19 Move 4415 | 41 456 615 887 650 1167 599 Hop 26 | . 3 2 15 6 . . Pick Up 32 | 1 8 1 10 3 5 4 Fast Attach 22 | 3 5 . 6 1 5 2 Attach 13 | . 2 1 8 1 . 1 Detach 3 | . . . 2 1 . . Swap 17 | . 3 . 3 1 4 6 Drop 34 | . 5 1 9 2 11 6 Fire 51 | . 39 5 3 1 . 3 Melee 72 | . . . 48 10 2 12 Ram . | . . . . . . . Kick . | . . . . . . . Crush . | . . . . . . . Escape Stasis . | . . . . . . . Rewire . | . . . . . . . Trap 4 | . . 4 . . . . Miscellaneous . | . . . . . . . Route ------- -11/Scrapyard -10/Materials (discovered 3 exits: *Mat x2 / [*Min]) -10/Mines (discovered 2 exits: *Mat x2) -9/Materials (discovered 3 exits: [*Mat x2] / [*Min]) -9/Mines (discovered 4 exits: [*Mat x2] / [*Exi] / [*Zio]) -7/Zion -6/Proximity Caves History --------- Turn | Location | Event 17 | -11/Scrapyard | Discovered new exit (range 16) 56 | -11/Scrapyard | Entered Materials 187 | -10/Materials | Discovered new exit (range 8) 313 | -10/Materials | Build established: Mutant 532 | -10/Materials | Discovered new exit (range 15) 548 | -10/Materials | Discovered new exit (range 15) 618 | -10/Materials | Entered Mines 621 | -10/Mines | Found a hidden stash of uninstalled traps 741 | -10/Mines | Received a Rocket Launcher from a helpful Derelict 752 | -10/Mines | Discovered new exit (range 5) 805 | -10/Mines | Learned Materials terminal intel 833 | -10/Mines | Learned Materials non-interactive machine intel 833 | -10/Mines | Discovered new exit (range 11) 834 | -10/Mines | Learned location of Storage (-7) 839 | -10/Mines | Build established: Scavenger-Mutant 889 | -10/Mines | Assisted by bots powering up and referring to "LRC-V3" 891 | -10/Mines | Learned Materials terminal intel 1018 | -10/Mines | Entered Materials 1018 | -9/Materials | Accompanied by 3 allies 1018 | -9/Materials | Evolved 2 slots: Utility x2 1019 | -9/Materials | Loaded intel: 41 non-interactive machine locations 1020 | -9/Materials | Loaded intel: 12 terminal locations 1157 | -9/Materials | Discovered new exit (range 13) 1329 | -9/Materials | Core integrity fell below 50% 1434 | -9/Materials | Repaired Flight Unit 1447 | -9/Materials | Discovered new exit (range 5) 1452 | -9/Materials | Central database locked down 1497 | -9/Materials | Learned 4 Recycling zone layouts 1511 | -9/Materials | Discovered new exit (range 17) 1532 | -9/Materials | Learned location of 1 exit from Recycling 1572 | -9/Materials | Learned location of 1 exit from Recycling 1578 | -9/Materials | Learned location of Zion (-7) 1583 | -9/Materials | Learned Storage emergency access door positions 1606 | -9/Materials | Entered Mines 1647 | -9/Mines | Received a Mining Laser from a helpful Derelict 1672 | -9/Mines | Build established: Mutant 1675 | -9/Mines | Learned location of 1 exit from Lower Caves 1685 | -9/Mines | A Derelict revealed a hidden shortcut to a safe place 1685 | -9/Mines | Discovered new exit (range 16) 1718 | -9/Mines | Deemed a non-threat by the Exiles lab entrance 1718 | -9/Mines | Discovered new exit (range 6) 1768 | -9/Mines | Discovered new exit (range 6) 1803 | -9/Mines | Excavation squad dispatched 1803 | -9/Mines | A large section of the Mines collapsed 1937 | -9/Mines | Entered Zion 1937 | -7/Zion | Accompanied by 1 ally 1946 | -7/Zion | Learned location of Warlord (-5) 1965 | -7/Zion | Discovered new exit (range 14) 1967 | -7/Zion | Given A8's code to call for help 2000 | -7/Zion | System corruption cleaned by Quarantine Array 2008 | -7/Zion | Build established: Scavenger-Mutant 2010 | -7/Zion | Learned location of Recycling (-7) 2039 | -7/Zion | Learned location of Data Miner (-6) 2046 | -7/Zion | Learned Factory garrison access intel 2093 | -7/Zion | Learned Factory terminal intel 2100 | -7/Zion | Found CR-A16's Pointy Stick 2120 | -7/Zion | Met Imprinter 2164 | -7/Zion | Received a visual enhancement algorithm 2191 | -7/Zion | Given the Hacking Drone Bay 2194 | -7/Zion | Found Prototype Device 2194 | -7/Zion | Identified Hacking Drone Bay 2210 | -7/Zion | Found GAL Module 2253 | -7/Zion | Learned Factory emergency access door positions 2382 | -7/Zion | Imprinted 2384 | -7/Zion | Declared Zion's savior 2496 | -7/Zion | Build established: Derelict-Mutant 2655 | -7/Zion | Entered Proximity Caves 2655 | -6/Proximity Caves | Accompanied by 4 allies 2677 | -6/Proximity Caves | Found Alien Artifact 2870 | -6/Proximity Caves | Attracted the attention of an 0b10 base 2870 | -6/Proximity Caves | Learned Research stockpile data 2870 | -6/Proximity Caves | Learned Extension garrison access intel 2883 | -6/Proximity Caves | Core integrity fell below 20% 2914 | -6/Proximity Caves | Spotted B-75 Beast 2987 | -6/Proximity Caves | Destroyed by Y-54 Guardian with Gatling Laser Last Messages --------------- 02880_ S-27 Virus destroyed. 02880_ Destroyed Lgt. Nuclear Core. 02882_ Hacking Suite destroyed. 02883_ Penetrated by Slug. 02884_ S-27 Virus destroyed. 02884_ Critical hit (Burn: +37). 02887_ The unstable cave ceiling collapses. 02952_ Searching scrap... 02952_ Found Imp. Cryofiber Web. 02952_ Found Matter Compressor. 02952_ Found Med. Insulated Plating. 02952_ Found Tactical Coordination Suite. 02952_ Found 48 Matter. 02953_ Acquired 48 matter. 02977_ Slug penetrates Wall. 02977_ Lgt. Armor Plating destroyed. 02977_ Slug penetrates Wall. 02977_ Penetrated by Slug. 02980_ Slug penetrates Wall. 02980_ Penetrated by Slug. Map ----- +----------------------------------------------------+ | ?????????????????????????????????????????????????? | | ?????????????????????????????????????????????????? | | ?????????????????????????????????????????????????? | | ?????????????????????????????????????????????????? | | ?????????????????????????????????????????????????? | | ?????????????????????????????????????????????????? | | ?????????????????????????????????????????????????? | | ???????????????????????###???????????????????????? | | ###???????????????????? ###??????????????????????? | | ####?????????????????# ##??????????????????????? | | ######???#####?????## #??????????????????????? | | ######?#######????## ###????????????????????? | | ####### ######?# ###????????????????????? | | ##### ####### ????????????????????? | | ##### ?????????????????????? | | ##### #### ?????????????????????? | | ######## ####### ??????????????????????? | | ## #####?## ###### ??????????????????????? | | ### ##????### ###??## Y??????????????????????? | | ### ######### ###?### ??????????????????????? | | ?## ######### ##??### ??????????????????????? | | ?## ! ! ##??## ?????????????????????? | | ?#######! ##??## ######?????????????????? | | ?####### !############ ######?????????????????? | | ?????### ############# ##?????????????????? | | ?????### ##???##@## ##?????????????????? | | ????### ###???## ## ##?????????????????? | | ??? ### ####???## ## ##?????????????????? | | ## ####????## ## ###????????????????? | | ###?????## ## ###????????????????? | | ##### ##??????## ##????????????????? | | ###### ########### ###????????????????? | | ######### ############## ###????????????????? | | ####### ###### ##????????????????? | | #### ##### ##????????????????? | | ### ### ### #### ##????????????????? | | ### ######### #### ##????????????????? | | #### ######### ### ###????????????????? | | #### ### ### # ###????????????????? | | ### ## ##?????????????????? | | ## ##?????????????????? | | ##### ##?????????????????? | | # ######### ###?????????????????? | | ## ## ######?############?????????????????? | | ######## ########?????#########??????????????????? | | ###############??????????????????????????????????? | | ??????#####??????????????????????????????????????? | | ?????????????????????????????????????????????????? | | ?????????????????????????????????????????????????? | | ?????????????????????????????????????????????????? | +----------------------------------------------------+ Best States ------------- Heat Dissipation 38 Coolant Potential 50 Energy Generation 15 Energy Capacity 170 Matter Stores 300 Matter Capacity 300 Sight Range 18 Terrain Scan Range 14 Terrain Scan Density 10 Armor Coverage 150 Evasion (%) 63 Offensive Hacking 10 Trap Extractor Capacity 6 Item Schematics ----------------- Trap Extractor | -9/Materials | Hacked Disposable Heat Sink | -9/Materials | Scanalyzed Imp. Flight Unit | -9/Materials | Scanalyzed Sml. Battery | -9/Materials | Extracted Terrain Scan Processor | -9/Materials | Extracted Datajack | -9/Materials | Extracted Imp. Treads | -9/Materials | Extracted EMP Blaster | -9/Materials | Extracted Particle Gun | -9/Materials | Extracted Imp. Assault Rifle | -9/Materials | Extracted Weapon Shielding | -9/Materials | Extracted Mni. Grenade Launcher | -9/Materials | Extracted Recalibrator | -7/Zion | Archive Thermal Shield | -7/Zion | Archive Lgt. Angular Momentum Engine | -7/Zion | Archive Imp. Medium Armor Plating | -7/Zion | Archive Imp. Trap Scanner | -7/Zion | Archive Imp. Melee Analysis Suite | -7/Zion | Archive Adv. Plasma Cannon | -7/Zion | Archive Imp. Plasma Cutter | -7/Zion | Archive Coolant Injector | -7/Zion | Archive Magnetic Acceleration Cannon | -7/Zion | Archive Hvy. Ion Cannon | -7/Zion | Archive Coil Gun | -7/Zion | Archive Power Maul | -7/Zion | Archive Phase Shifter | -7/Zion | Archive EM Disruption Field | -7/Zion | Archive Robot Schematics ------------------ M-13 Machinist | -10/Materials | Hacked L-41 Fighter | -7/Zion | Archive T-07 Excavator | -7/Zion | Archive B-48 Gladiator | -7/Zion | Archive H-88 Terminator | -7/Zion | Archive Fabricated ------------ Nothing Repaired ---------- Flight Unit | 30% | -9/Materials Studied --------- None Alien Tech Used ----------------- None Achievements -------------- None Challenges ------------ None Game ------ Seed AntimissileSmallSuite Manual? 0 Play Time 00:40:06 Cumulative 1118.6 hours Start 2025.11.29 @ 23:06:01 End 2025.11.29 @ 23:57:20 Sessions 3 Manual Loads 0 Difficulty Rogue Special Mode None Game No. 394 Rogue 389 Adventurer 4 Explorer 1 Win Type - Total 23 Types 13/3/1/2/0/1/0/0/2/1 Lore% 97 Gallery% 95 Achievement% 81 Wizard Run 0 Options --------- Layout 0 ASCII 0 Keyboard 0 Movement Numpad Keybinds 0 Fullscreen 2 Font 18/SmallcapsGlow Map View 76x50 Zoom Use 0% Tactical HUD 1 Map Filters NONE Filters NONE Steam 1 RUN: facd1548-6c1f-4c4c-83e7-ce9cec37dda0